[Event "1000GM Memorial Day NY IM-C 2023"]
[Site "New York"]
[Date "2023.05.27"]
[Round "4.4"]
[White "Mahajan, Rushaan"]
[Black "Reiss, Aiden"]
[Result "0-1"]
[ECO "A09"]
[WhiteElo "2279"]
[BlackElo "2138"]
[Annotator "TA"]
[PlyCount "112"]
[EventDate "2023.05.23"]
[EventType "tourn"]
[EventCountry "USA"]
[SourceTitle "playchess.com"]
[Source "ChessBase"]
[SourceQuality "1"]
[TimeControl "5400+30"]

{[%evp 9,112,7,6,0,29,0,26,-34,-33,-30,-34,-33,-19,-61,-52,-68,-72,-70,-28,-24,-27,-23,-25,-27,-39,-33,-29,-49,-38,-34,-24,-52,-44,-43,-5,-11,0,0,0,0,0,0,0,-2,0,0,0,0,0,0,0,0,0,-26,-18,-18,-19,-23,-22,-41,-52,-68,-60,-118,-118,-106,-100,-142,-150,-150,-150,-152,-85,-220,-130,-153,-133,-474,-476,-427,-427,-339,-318,-937,-854,-12832,-11994,-12804,-12797,-5941,-5898,-29978,-29978,-29981,-29982,-29985,-29986,-29986,-29987,-29987,-29988,-29988,-29987,-29991,-29992]} 1. Nf3 {[%emt 0:01:18]} d5 {[%emt 0:03:26]} 2. g3 {[%emt 0:00:07]} Nf6 {[%emt 0:00:02]} 3. Bg2 {[%emt 0:00:51]} g6 {[%emt 0:00:02]} 4. c4 {[%emt 0:04:49]} dxc4 {[%emt 1:29:00]} 5. Qa4+ {[%emt 0:01:09]} Nfd7 {[%emt 0:00:00]} 6. Qxc4 {[%emt 0:01:14] A09: Réti Opening: 1 Nf3 d5 2 c4.} Nc6 {[%emt 0:00:00]} 7. O-O {[%emt 0:16:32] [#]} (7. Ng5 $5 {[%cal Rc4f7]} e6 8. Qc3 $11) 7... e5 $146 {[%emt 0:00:00]} ({Predecessor:} 7... Bg7 8. d3 Nb6 9. Qc2 O-O 10. Nc3 Bg4 11. Qd1 Qc8 12. Bf4 e5 13. Bd2 Nd4 14. Nxd4 exd4 {0-1 Opitz,P (1950)-Reichenbach,E (2084) GER-ch 2014-B-V5 serv}) 8. e3 {[%emt 0:10:13]} (8. d3 $11) 8... Nb6 $15 {[%emt 0:00:00]} 9. Qe2 {[%emt 0:00:28]} Bg7 {[%emt 0:00:00]} 10. d4 {[%emt 0:02:14]} Be6 {[%emt 0:00:00] Threatening ...Bc4.} 11. Na3 {[%emt 0:05:10] Dodges Bc4} exd4 {[%emt 0:00:00] Black is more active.} 12. Nxd4 {[%emt 0:01:10]} Nxd4 {[%emt 0:00:00]} 13. exd4 {[%emt 0:00:04]} c6 {[%emt 0:00:00]} 14. Bh3 {[%emt 0:02:56]} Qd7 {[%emt 0:00:00]} 15. Bxe6 {[%emt 0:02:09]} Qxe6 {[%emt 0:00:00]} 16. Qxe6+ {[%emt 0:00:40]} fxe6 {[%emt 0:00:00]} 17. Be3 {[%emt 0:02:06]} Rd8 {[%emt 0:00:00]} 18. Rfd1 {[%emt 0:02:48]} Kf7 {[%emt 0:00:00]} 19. Nc2 {[%emt 0:03:56]} Nc4 {[%emt 0:00:00][%cal Bb6c4,Bc4d6,Bd6f5][%mdl 32]} 20. Bf4 {[%emt 0:08:29]} Rd7 {[%emt 0:00:00]} (20... Nxb2 21. Rdb1 $16) 21. b3 {[%emt 0:01:24]} Nd6 {[%emt 0:00:00]} 22. Be5 {[%emt 0:04:14]} Nf5 {[%emt 0:00:00]} 23. Bxg7 $1 {[%emt 0:03:21]} Kxg7 {[%emt 0:00:00]} 24. Re1 $1 {[%emt 0:00:06]} Kf7 {[%emt 0:00:00]} 25. Re4 $1 {[%emt 0:00:04]} Rhd8 {[%emt 0:10:30][%cal Rf5d4]} 26. Rae1 {[%emt 0:00:04]} Nxd4 {[%emt 0:00:00]} 27. Nxd4 {[%emt 0:00:46]} Rxd4 {[%emt 0:00:00]} 28. Rxe6 $11 {[%emt 0:00:05][%mdl 4096] Endgame Threatens to win with Re7+. KRR-KRR} Rd1 {[%emt 0:00:00]} 29. Re7+ {[%emt 0:01:42]} Kf6 {[%emt 0:00:00]} 30. R7e6+ {[%emt 0:00:08]} Kf7 {[%emt 0:00:00]} 31. Kg2 {[%emt 0:03:39]} Rxe1 {[%emt 0:00:00]} 32. Rxe1 {[%emt 0:00:01] KR-KR} Rd2 {[%emt 0:00:00]} 33. a4 {[%emt 0:00:17]} Rd3 {[%emt 0:00:00]} 34. Rb1 {[%emt 0:07:39]} Ke6 {[%emt 0:00:00]} 35. h4 {[%emt 0:00:07]} c5 {[%emt 0:00:00]} 36. Kf1 {[%emt 0:08:38]} (36. h5 $15) 36... Kd5 $17 {[%emt 0:00:00]} 37. Ke2 {[%emt 0:00:06] [#]} Kd4 {[%emt 0:00:00]} 38. f3 {[%emt 0:03:10]} b6 {[%emt 0:00:00]} 39. g4 {[%emt 0:00:41]} a6 {[%emt 0:00:00]} 40. h5 {[%emt 0:02:48]} b5 {[%emt 0:00:00]} (40... gxh5 $142 41. gxh5 b5) 41. h6 {[%emt 0:02:19] [#]} (41. hxg6 $17 {keeps fighting.} hxg6 42. f4) 41... g5 {[%emt 0:00:00]} ({Black should play} 41... b4 $1 $19 42. g5 a5) 42. axb5 {[%emt 0:00:47]} axb5 {[%emt 0:00:00]} 43. Kf2 $2 {[%emt 0:00:03][%mdl 8192] This costs White the game.} (43. Rf1 $17) 43... Kc3 $19 {[%emt 0:00:00]} 44. Re1 {[%emt 0:01:12]} Kxb3 {[%emt 0:00:00]} 45. Re5 {[%emt 0:00:31]} Kc4 {[%emt 0:00:00] ...b4 is the strong threat.} 46. Rxg5 $2 {[%emt 0:00:26]} (46. Re4+ Rd4 47. Rxd4+ cxd4 48. f4 {[%mdl 64] Promotion}) 46... Rd6 {[%emt 0:00:00]} ({And not} 46... b4 47. Rg7 b3 48. Rxh7 $14) 47. Rh5 {[%emt 0:00:01]} b4 {[%emt 0:00:00]} 48. g5 {[%emt 0:00:05]} b3 {[%emt 0:11:30] ( -> ...b2)} 49. Rh1 {[%emt 0:01:12]} b2 {[%emt 0:00:00] Strongly threatening ...Kc3.} 50. f4 {[%emt 0:00:44]} Kb3 {[%emt 0:00:00] Black mates.} 51. Rg1 {[%emt 0:00:30]} c4 {[%emt 0:00:00][%cal Bc5c4,Bc4c3,Bc3c2][%mdl 32]} 52. f5 {[%emt 0:00:37]} c3 {[%emt 0:00:00]} 53. g6 {[%emt 0:00:22]} c2 {[%emt 0:00:00]} 54. g7 {[%emt 0:00:33]} Rd8 {[%emt 0:00:00]} (54... c1=R $2 55. g8=Q+ Kc2 56. Qc4+ (56. Qxh7 $2 {is the wrong capture.} Rd2+ 57. Ke3 Rd3+ 58. Kf2 Rxg1 $19) 56... Kb1 57. Qe4+ Ka1 58. Qe5 Rxg1 59. Qxd6 $18 (59. Kxg1 Ka2 $16)) 55. Rg3+ {[%emt 0:00:44]} Ka2 {[%emt 0:00:00]} 56. Rd3 {[%emt 0:00:06]} b1=Q {[%emt 0:00:00] Weighted Error Value: White=0.62/Black=0.06 (flawless)} 0-1

[Event "1000GM Memorial Day NY IM-C 2023"]
[Site "New York"]
[Date "2023.05.27"]
[Round "4.5"]
[White "Zumsande, Martin"]
[Black "Lee, Megan"]
[Result "1/2-1/2"]
[ECO "B22"]
[WhiteElo "2454"]
[BlackElo "2261"]
[Annotator "TA"]
[PlyCount "102"]
[EventDate "2023.05.23"]
[EventType "tourn"]
[EventCountry "USA"]
[SourceTitle "playchess.com"]
[Source "ChessBase"]
[SourceQuality "1"]
[TimeControl "5400+30"]

{[%evp 14,102,0,0,3,-8,9,13,131,143,140,110,157,91,210,63,60,28,84,79,101,81,102,65,98,37,41,5,4,6,7,7,4,0,0,0,0,0,0,-16,-16,-13,-13,-17,0,0,0,0,43,0,0,0,0,0,27,27,35,49,18,6,6,0,6,7,7,7,15,17,74,79,102,102,131,139,203,139,73,73,73,73,662,594,565,0,0,0,0,0,0,0,0]} 1. e4 {[%emt 0:00:03]} c5 {[%emt 0:00:52]} 2. Nf3 {[%emt 0:00:14]} e6 {[%emt 0:00:07]} 3. c3 {[%emt 0:00:09]} d5 {[%emt 0:00:05]} 4. exd5 {[%emt 0:00:20]} Qxd5 {[%emt 0:00:11]} 5. d4 {[%emt 0:00:19]} Nf6 {[%emt 0:00:21]} 6. Bd3 {[%emt 0:00:53]} Be7 $1 {[%emt 0:00:36] The main line 6...Be7 scores better than 6...Nc6.} 7. O-O {[%emt 0:02:57]} O-O {[%emt 0:00:29]} 8. Qe2 {[%emt 0:02:35]} Rd8 {[%emt 0:18:12] B22: Sicilian: 2 c3.} 9. Rd1 {[%emt 0:02:17]} b6 {[%emt 0:06:31][%cal Rc5d4] [#]} 10. Na3 $146 {[%emt 0:07:16]} ({Predecessor:} 10. Bg5 Bb7 11. c4 Qd6 12. dxc5 Qxc5 13. Nc3 Nbd7 14. Ne4 Nxe4 15. Bxe7 Qxe7 16. Bxe4 {½-½ Gaponenko,I (2420)-Muzychuk,A (2569) Wch Blitz (Women) 2018 (4)}) 10... Bd7 {[%emt 0:10:41]} (10... Qh5 $11) 11. Bg5 $1 $16 {[%emt 0:10:33]} Qb7 {[%emt 0:06:26]} 12. Nc4 {[%emt 0:09:28][%cal Od4d5] d5! would be deadly. White is much more active. The black rooks are badly placed.} cxd4 {[%emt 0:04:36]} (12... Bb5 $142) 13. Nxd4 {[%emt 0:06:43]} Bc6 {[%emt 0:09:15] [#]} (13... Ba4 $16 {was necessary.}) 14. Nxc6 {[%emt 0:14:52]} (14. Ne5 $1 $18) 14... Nxc6 $14 {[%emt 0:00:08]} 15. Qf3 {[%emt 0:04:57]} Qc7 {[%emt 0:03:46]} (15... Rab8 $11) 16. Bf4 $16 {[%emt 0:02:09] This pair of bishops is nice.} Qc8 {[%emt 0:05:40]} 17. Bg3 {[%emt 0:06:04]} h6 {[%emt 0:03:28]} 18. a4 {[%emt 0:01:17]} Rd5 {[%emt 0:04:23]} 19. Qe2 {[%emt 0:02:05]} (19. b4 $16) 19... Nh5 $14 {[%emt 0:01:41]} 20. Be4 {[%emt 0:06:26]} (20. Qe4 $5 {[%cal Re4h7]} g6 21. Bf1 $14) 20... Nxg3 {[%emt 0:00:25]} 21. hxg3 {[%emt 0:00:03]} Rxd1+ {[%emt 0:01:02]} 22. Rxd1 {[%emt 0:00:02] Threatens to win with Qf3.} Qc7 $1 {[%emt 0:02:05] Black is weak on the light squares} 23. Bc2 {[%emt 0:03:16]} Rd8 {[%emt 0:01:01]} 24. Rxd8+ {[%emt 0:00:18]} Nxd8 {[%emt 0:20:29][%cal Bc6d8,Bd8b7,Bb7c5][%mdl 32]} 25. Qd3 {[%emt 0:02:06] White wants to mate with Qh7+.} g6 {[%emt 0:00:00]} 26. Bb3 {[%emt 0:01:55]} Nb7 {[%emt 0:00:00]} 27. Bc2 {[%emt 0:01:17]} Nc5 {[%emt 0:00:00]} 28. Qd4 {[%emt 0:00:42]} Bf8 {[%emt 0:00:00]} 29. Qf4 {[%emt 0:01:36]} Qb7 {[%emt 0:00:00]} 30. b4 {[%emt 0:02:06]} g5 {[%emt 0:00:00]} 31. Qd4 {[%emt 0:03:48]} (31. Qf6 $5 {[%cal Rb4c5]} Na6 32. Ne5 $14) 31... Nd7 {[%emt 0:00:00]} 32. Nd6 {[%emt 0:02:23]} Bxd6 {[%emt 0:00:00]} 33. Qxd6 {[%emt 0:00:02]} Qd5 {[%emt 0:00:00]} 34. Qxd5 {[%emt 0:00:33]} exd5 $11 {[%emt 0:00:00][%mdl 4096] Endgame KB-KN} 35. Bb3 {[%emt 0:00:44]} Nf6 {[%emt 0:00:00]} 36. f3 {[%emt 0:00:09] Wards off Ne4} Kf8 $1 {[%emt 0:00:00]} 37. Kf2 {[%emt 0:00:05]} Ke7 {[%emt 0:00:00]} 38. Ke3 {[%emt 0:00:07]} Kd6 {[%emt 0:00:00]} 39. Kd4 {[%emt 0:00:11]} Nh5 {[%emt 0:03:33]} 40. Bxd5 {[%emt 0:00:22]} Nxg3 {[%emt 0:00:05]} (40... f5 $11) 41. Bxf7 $16 {[%emt 0:03:31]} Ne2+ {[%emt 0:00:05]} 42. Kc4 {[%emt 0:00:30]} Ke5 {[%emt 0:00:26]} 43. g4 {[%emt 0:01:29]} Kf4 {[%emt 0:01:35]} (43... Kf6 $16) 44. Bd5 {[%emt 0:00:09]} Ke3 {[%emt 0:00:44]} (44... Ke5 $142) 45. Bc6 {[%emt 0:02:06]} Kd2 {[%emt 0:00:29]} 46. a5 {[%emt 0:00:35]} bxa5 $2 {[%emt 0:02:44][%mdl 8192]} (46... Nxc3 $16 47. a6 Ne2) 47. bxa5 $18 {[%emt 0:00:02]} Nxc3 {[%emt 0:00:06] [#]} 48. a6 $2 {[%emt 0:00:23]} (48. Be8 $1 $18 Nd1 49. Kc5) 48... Ne2 $11 {[%emt 0:00:28] The position is equal.} 49. Be4 {[%emt 0:01:01]} Ke3 {[%emt 0:02:15]} 50. Kc5 {[%emt 0:00:17] Hoping for Kc6.} Kf4 {[%emt 0:00:00]} 51. Kc6 {[%emt 0:00:24] Kb7 is the strong threat.} Ke5 {[%emt 0:00:00] Weighted Error Value: White=0.21 (precise) /Black=0.34} 1/2-1/2

[Event "1000GM Memorial Day NY IM-C 2023"]
[Site "New York"]
[Date "2023.05.28"]
[Round "5.1"]
[White "Lee, Megan"]
[Black "Sazci, Bilgen"]
[Result "0-1"]
[ECO "C54"]
[WhiteElo "2261"]
[BlackElo "1827"]
[Annotator "TA"]
[PlyCount "120"]
[EventDate "2023.05.23"]
[EventType "tourn"]
[EventCountry "USA"]
[SourceTitle "playchess.com"]
[Source "ChessBase"]
[SourceQuality "1"]
[TimeControl "5400+30"]

{[%evp 11,120,15,11,14,23,10,26,20,23,11,25,0,0,0,0,0,0,0,0,0,0,-47,-47,-53,-26,-22,-26,-147,-149,-146,-144,-147,-157,-158,-146,-121,-87,-141,-129,-120,-130,-141,-114,-100,-87,-103,-85,-89,-85,-95,-58,-54,-43,-131,-130,-139,-131,-133,-140,-131,-131,-136,-131,-133,-91,-93,-27,-35,0,-77,0,-45,-11,-12,0,-4,0,-235,-213,-219,-210,-246,-229,-268,-158,-148,0,-292,0,-156,0,-266,-235,-262,-254,-253,-262,-301,-196,-227,-184,-354,-343,-339,-341,-402,-339,-338,-329,-471,-461]} 1. e4 {[%emt 0:00:02]} e5 {[%emt 0:00:34]} 2. Nf3 {[%emt 0:00:06]} Nc6 {[%emt 0:00:17]} 3. Bc4 {[%emt 0:00:04]} Bc5 {[%emt 0:01:16]} 4. c3 {[%emt 0:00:07]} Nf6 {[%emt 0:00:50]} 5. d3 {[%emt 0:00:04]} d6 {[%emt 0:00:27]} 6. O-O {[%emt 0:00:19]} a6 {[%emt 0:03:27]} 7. a4 {[%emt 0:00:05] C54: Giuoco Piano: 4 c3 Nf6, main lines with 5 d4 and 5 d3.} Ba7 {[%emt 0:00:41]} 8. Re1 {[%emt 0:00:34]} O-O $1 {[%emt 0:03:28][%cal Ob7b5] The main line 8...0-0 scores better than 8...h6.} 9. Nbd2 {[%emt 0:01:39] White has an edge.} Be6 {[%emt 1:24:00]} (9... Nh5 {is interesting.} 10. Nf1 Qf6 11. Bg5 Qg6) 10. b4 {[%emt 0:06:03]} Re8 {[%emt 0:00:00] [#]} (10... Ng4 {with more complications.} 11. Re2 Bxc4 12. Nxc4 d5) 11. Bb2 $146 {[%emt 0:16:15]} ({Predecessor:} 11. Bxe6 Rxe6 12. Nb3 h6 13. Be3 Bxe3 14. Rxe3 a5 15. b5 Ne7 16. Qc2 Ng6 17. d4 {0-1 Makoveev,I (2196)-Vokhidov,S (2401) Moscow op-A 14th 2018 (1)}) 11... Bxc4 {[%emt 0:00:00]} 12. Nxc4 {[%emt 0:00:44]} d5 {[%emt 0:00:00]} 13. exd5 {[%emt 0:03:55]} Qxd5 {[%emt 0:00:00]} 14. Ne3 $1 {[%emt 0:02:03]} Bxe3 {[%emt 0:00:00]} 15. Rxe3 {[%emt 0:00:34]} Rad8 {[%emt 0:00:00]} 16. Nd2 {[%emt 0:03:30]} (16. c4 $11 {is superior.} Qd6 17. b5) 16... Qd7 $15 {[%emt 0:00:00]} 17. b5 {[%emt 0:06:47]} axb5 {[%emt 0:00:00]} 18. axb5 {[%emt 0:00:06]} Ne7 {[%emt 0:00:00]} 19. Nc4 {[%emt 0:29:06]} (19. c4 $11) 19... e4 $17 {[%emt 0:00:00]} 20. d4 {[%emt 0:08:00]} Qxb5 {[%emt 0:00:00]} 21. Qf1 {[%emt 0:00:49] White is weak on the light squares} Ned5 {[%emt 0:00:00]} 22. Ree1 {[%emt 0:00:43]} Ra8 {[%emt 0:00:00] Prevents Ra5.} 23. Reb1 {[%emt 0:01:54]} b6 {[%emt 0:00:00] Black is much more active.} 24. Ne5 {[%emt 0:03:02]} (24. Bc1 $142 Qc6 25. Bd2) 24... Rxa1 {[%emt 0:00:00]} 25. Bxa1 {[%emt 0:00:15]} Qxf1+ {[%emt 0:00:00]} 26. Kxf1 {[%emt 0:00:24]} Ra8 {[%emt 0:00:00][%cal Ob6b5]} 27. c4 {[%emt 0:00:52]} Nf4 {[%emt 0:00:00]} 28. Bc3 {[%emt 0:00:45]} Ne6 {[%emt 0:00:00]} 29. Nc6 {[%emt 0:02:15]} Ne8 {[%emt 0:00:00]} 30. Bb4 {[%emt 0:01:54]} g6 {[%emt 0:00:00]} 31. Re1 {[%emt 0:03:29]} Ra4 {[%emt 0:00:00][%cal Oe6d4] And now ...Nxd4! would win.} 32. Rxe4 {[%emt 0:01:19]} (32. d5 $15 Nc5 33. Bxc5 bxc5 34. Rxe4) 32... Nf6 {[%emt 0:00:00]} 33. Re3 {[%emt 0:04:36] [#]} Nxd4 $1 {[%emt 0:00:00][%mdl 576] Deflection} 34. Bc3 {[%emt 0:01:00] Wards off Ra1+} Nxc6 {[%emt 0:00:00]} 35. Bxf6 {[%emt 0:00:01][%cal Re3e8][%mdl 4096] Endgame KRB-KRN} Kf8 {[%emt 0:00:00] Prevents Re8+} (35... Rxc4 $2 36. Re8#) 36. Rc3 {[%emt 0:01:00]} Ke8 {[%emt 0:00:00]} 37. g4 {[%emt 0:00:46]} Kd7 {[%emt 0:00:00]} 38. g5 {[%emt 0:00:36]} Na5 (38... Ra1+ $17 39. Ke2 Ra2+ 40. Kf3 Rd2) 39. Re3 $1 $11 {[%emt 0:00:30]} Nc6 40. Rc3 {[%emt 0:00:30]} Ke6 41. Re3+ $1 {[%emt 0:00:30]} Kf5 42. Rf3+ {[%emt 0:00:30]} Ke6 43. Re3+ {[%emt 0:00:30]} Kf5 44. Rh3 $2 {[%emt 0:00:30]} (44. Rf3+ $11 Ke4 45. Rc3) 44... Rxc4 $19 45. Rxh7 {[%emt 0:00:30]} Ke6 46. Rh8 {[%emt 0:00:30]} b5 47. Re8+ {[%emt 0:00:30]} Kd7 (47... Kd5 $19 48. Rf8 Ke6 49. Re8+ Kd6) 48. Rf8 $17 {[%emt 0:00:30]} Ke6 (48... Rc1+ $17 49. Ke2 Ke6) 49. Rc8 $2 {[%emt 0:00:30][%mdl 8192]} (49. Re8+ $1 $11 {and White has nothing to worry.} Kd6 50. Rf8) 49... Kd7 ({Better is} 49... Kd6 $19 {...b4 would be deadly.} 50. Rf8 Ne5 51. Bxe5+ Kxe5) 50. Rf8 {[%emt 0:00:30] [#]} Ke6 (50... Rc1+ $1 $17 51. Ke2 Ke6 52. Re8+ Kf5) 51. Re8+ $19 {[%emt 0:00:30]} Kd5 52. Rf8 {[%emt 0:00:30]} Ne5 53. Rd8+ {[%emt 0:00:30]} Ke4 54. Kg2 {[%emt 0:00:30]} Rc5 55. Kg3 {[%emt 0:00:30]} Kf5 56. Rd4 $2 {[%emt 0:00:30]} (56. f4 Nc4 57. Be7) 56... Rc3+ 57. Kg2 {[%emt 0:00:30] Rd5 is the strong threat.} c6 {Prevents Rd5} 58. Rb4 {[%emt 0:00:30]} Rc2 {White must now prevent ...Nd3.} 59. Rb3 {[%emt 0:00:30]} Rc4 60. Re3 {[%emt 0:00:30]} (60. Be7 {might work better.}) 60... Ng4 {[%csl LRe3,LRf6] Weighted Error Value: White=0.34/Black=0.24 (precise)} 0-1

[Event "1000GM Memorial Day NY IM-C 2023"]
[Site "New York"]
[Date "2023.05.28"]
[Round "5.2"]
[White "Reiss, Aiden"]
[Black "Zumsande, Martin"]
[Result "1/2-1/2"]
[ECO "C11"]
[WhiteElo "2138"]
[BlackElo "2454"]
[Annotator "TA"]
[PlyCount "95"]
[EventDate "2023.05.23"]
[EventType "tourn"]
[EventCountry "USA"]
[SourceTitle "playchess.com"]
[Source "ChessBase"]
[SourceQuality "1"]
[TimeControl "5400+30"]

{[%evp 13,95,0,27,25,34,18,25,33,22,32,33,29,33,36,24,27,34,27,42,1,38,35,37,0,0,0,0,0,0,-7,-7,-7,-8,-219,0,-7,0,0,0,-15,0,0,0,-6,0,-27,0,-12,-12,-15,0,-86,-54,-94,-28,-31,0,-4,0,0,0,-27,-31,-118,-56,-36,-41,-38,0,0,0,0,0,0,0,0,0,0,0,0,0,0,0,0]} 1. e4 {[%emt 0:03:00]} e6 {[%emt 0:00:03]} 2. d4 {[%emt 0:00:18]} d5 {[%emt 0:00:05]} 3. Nc3 {[%emt 0:00:14]} Nf6 {[%emt 0:00:07]} 4. e5 {[%emt 0:00:06]} Nfd7 {[%emt 0:00:05]} 5. f4 {[%emt 0:00:08]} c5 {[%emt 0:00:05]} 6. Nf3 {[%emt 0:00:03]} Nc6 {[%emt 0:00:21]} 7. Be3 {[%emt 0:00:03]} a6 {[%emt 0:00:05]} 8. Ne2 {[%emt 0:00:09] C11: French: Classical System: 4 e5 and 4 Bg5 dxe4.} Qb6 {[%emt 0:00:41]} 9. Qc1 {[%emt 0:00:50]} f6 {[%emt 0:00:27]} 10. c3 {[%emt 0:00:17] White has an edge.} Be7 {[%emt 0:01:15]} 11. exf6 {[%emt 0:00:18]} Nxf6 {[%emt 0:00:21]} 12. dxc5 {[%emt 0:00:03]} Bxc5 {[%emt 0:00:08]} 13. Bxc5 {[%emt 0:00:02]} Qxc5 {[%emt 0:00:05]} 14. Ned4 {[%emt 0:00:23]} O-O {[%emt 0:02:52]} 15. Bd3 {[%emt 0:00:31]} Nxd4 {[%emt 0:00:07]} 16. Nxd4 {[%emt 0:16:03]} Bd7 {[%emt 0:00:47]} 17. O-O {[%emt 0:00:38]} Bb5 {[%emt 0:03:58] [#]} 18. Qe3 $146 {[%emt 0:08:44]} ({Predecessor:} 18. Bxb5 axb5 19. a3 Ne4 20. Qe3 Rf6 21. Rf3 Raf8 22. Raf1 R8f7 23. Qe1 h5 24. Kh1 Qf8 25. Qe3 h4 26. Qe2 g5 27. fxg5 Nxg5 28. Rxf6 {½-½ Hesse,O (2450)-Haugen,A (2407) W-ch38 q02 email 2018}) 18... Bxd3 {[%emt 0:02:53]} 19. Qxd3 {[%emt 0:00:04]} Ne4 {[%emt 0:05:39]} 20. Rae1 {[%emt 0:02:38]} Rf6 {[%emt 0:03:38]} 21. Re3 {[%emt 0:05:33]} Raf8 {[%emt 0:06:38]} 22. Ref3 {[%emt 0:01:45]} Qb6 {[%emt 0:14:12]} 23. Kh1 $2 {[%emt 0:03:40] [#]} (23. Qe2 $11) 23... Kh8 $2 {[%emt 0:09:26]} (23... Qxb2 $19 24. f5 Qd2) 24. Qe2 $11 {[%emt 0:04:45]} Qd6 {[%emt 0:05:22][%cal Rf6f4]} 25. Qe3 {[%emt 0:01:21]} Qb6 {[%emt 0:04:42]} 26. Qe2 {[%emt 0:00:09]} Qc7 {[%emt 0:06:34]} 27. Qe3 {[%emt 0:01:35]} Qc4 {[%emt 0:01:01]} 28. b3 {[%emt 0:03:46]} Qc5 {[%emt 0:00:51]} 29. g4 {[%emt 0:03:13][%cal Bg2g4,Bg4g5][%mdl 32]} Qd6 {[%emt 0:02:43]} 30. g5 {[%emt 0:03:08]} R6f7 {[%emt 0:00:26]} 31. Ne2 {[%emt 0:04:19]} Kg8 {[%emt 0:01:40]} 32. h4 {[%emt 0:02:06]} (32. Ng3 $11) 32... g6 {[%emt 0:01:09]} 33. Rd1 {[%emt 0:03:28]} Qc6 {[%emt 0:02:28]} (33... e5 $17 {Hoping for ...Qe6.} 34. c4 exf4) 34. c4 {[%emt 0:02:24]} b5 {[%emt 0:04:39]} (34... h6 {is more complex.} 35. Kg1 b5 36. Qd4 Rf5) 35. cxd5 {[%emt 0:02:14]} exd5 {[%emt 0:00:14]} 36. Qd3 {[%emt 0:04:09]} Re8 {[%emt 0:03:18]} ({Much worse is} 36... Qb6 37. Kh2 $15) 37. Nd4 {[%emt 0:01:16] Against Qe6} Qd7 {[%emt 0:00:34] Threatens to win with ...Qg4.} 38. Rg1 {[%emt 0:02:19] Inhibits Qg4.} (38. f5 $1 $15) 38... Ref8 {[%emt 0:06:14]} ({Black should play} 38... Nd6 $17 39. Qd2 Re4) 39. f5 $1 $15 {[%emt 0:03:26]} gxf5 {[%emt 0:00:07] ...f4 would be deadly.} 40. Rf4 $1 {[%emt 0:00:29]} Qd6 {[%emt 0:01:14]} (40... Rc8 $5 {[%cal Rc8c3]} 41. Nxf5 {[%mdl 64] Remove Defender} Rxf5 42. Rxe4 Rf2 $15) 41. Rgf1 {[%emt 0:01:07] The position is equal.} Qe5 {[%emt 0:00:31]} 42. Nc6 {[%emt 0:06:22]} Qd6 {[%emt 0:00:26]} 43. Nd4 {[%emt 0:00:36]} Qe5 {[%emt 0:00:58]} 44. Kg2 {[%emt 0:02:38]} Nc5 {[%emt 0:02:00]} 45. Qg3 {[%emt 0:02:43]} Ne6 {[%emt 0:01:17]} 46. Nxe6 {[%emt 0:00:22]} Qxe6 {[%emt 0:00:01]} 47. Qd3 {[%emt 0:00:40]} Qe5 {[%emt 0:01:00]} 48. R1f2 {[%emt 0:10:25] Weighted Error Value: White=0.19 (very precise) /Black=0.20 (precise)} 1/2-1/2

[Event "1000GM Memorial Day NY IM-C 2023"]
[Site "New York"]
[Date "2023.05.28"]
[Round "5.3"]
[White "Paragua, Mark"]
[Black "Mahajan, Rushaan"]
[Result "1/2-1/2"]
[WhiteElo "2442"]
[BlackElo "2279"]
[Annotator "TA"]
[PlyCount "18"]
[EventDate "2023.05.23"]
[EventType "tourn"]
[EventCountry "USA"]
[SourceTitle "playchess.com"]
[Source "ChessBase"]
[SourceQuality "1"]
[TimeControl "5400+30"]

{[%evp 9,18,43,55,29,30,18,17,0,12,-6,-16]} 1. Nf3 {[%emt 0:00:04]} d5 {[%emt 0:00:03]} 2. g3 {[%emt 0:00:10]} Nd7 {[%emt 0:00:05]} 3. d4 {[%emt 0:00:56]} Nb6 {[%emt 0:00:03]} 4. Bg2 {[%emt 0:00:09]} Bf5 {[%emt 0:00:05]} 5. O-O {[%emt 0:00:19]} e6 {[%emt 0:00:20]} 6. Nbd2 {[%emt 0:01:52] D02: 1 d4 d5 2 Nf3 sidelines, including 2...Nf6 3 g3 and 2...Nf6 3 Bf4.} Be7 {[%emt 0:00:16] [#]} 7. c4 $1 {[%emt 0:02:18]} c6 {[%emt 0:00:48] [#] The position is equal.} 8. c5 $146 {[%emt 0:03:54]} ({Predecessor:} 8. Qb3 dxc4 9. Nxc4 Nxc4 10. Qxc4 Nf6 11. Ne5 O-O 12. Re1 h6 13. e4 Bh7 14. b3 {½-½ Gledura,B (2633)-Le,T (2542) Airthings Masters Play In rapid 2023 (4)}) 8... Nd7 {[%emt 0:00:17]} 9. b4 {[%emt 0:00:12]} a5 {[%emt 0:02:33] Black did not feel at home in the position after the opening.   Weighted Error Value: White=0.14 (very precise) /Black=0.00 (flawless)} 1/2-1/2